[Event "*** Titled Tuesday Blitz"]
[Site "Chess.com"]
[Date "2019.09.03"]
[Round "9"]
[White "ckgchess"]
[Black "amintabatabaei"]
[Result "0-1"]
[WhiteElo "2746"]
[BlackElo "2910"]
[TimeControl "180+2"]
[EndTime "17:09:42 PDT"]
[Termination "amintabatabaei won by resignation"]

1. e4 {[%clk 0:03:01.9]} 1... e5 {[%clk 0:02:58.6]} 2. Nc3 {[%clk 0:03:02.6]}
2... Nf6 {[%clk 0:02:57]} 3. g3 {[%clk 0:03:03.4]} 3... Bc5 {[%clk 0:02:55.2]}
4. Bg2 {[%clk 0:03:04.3]} 4... c6 {[%clk 0:02:56.3]} 5. Nf3 {[%clk 0:02:45.8]}
5... d5 {[%clk 0:02:32.8]} 6. Qe2 {[%clk 0:02:46.3]} 6... d4 {[%clk 0:02:31.5]}
7. Nb1 {[%clk 0:02:47.2]} 7... Bd6 {[%clk 0:02:31.9]} 8. d3 {[%clk 0:02:44.5]}
8... c5 {[%clk 0:02:33.1]} 9. O-O {[%clk 0:02:40]} 9... Nc6 {[%clk 0:02:35]} 10.
Nh4 {[%clk 0:02:31.6]} 10... O-O {[%clk 0:02:31.7]} 11. Nd2 {[%clk 0:02:29.5]}
11... Bc7 {[%clk 0:02:28.8]} 12. a4 {[%clk 0:02:22.1]} 12... a6 {[%clk 0:02:24]}
13. Qe1 {[%clk 0:01:42.4]} 13... Re8 {[%clk 0:02:09.1]} 14. Nb3 {[%clk
0:01:43.2]} 14... Nb4 {[%clk 0:01:50.5]} 15. Qd1 {[%clk 0:01:35.9]} 15... Qe7
{[%clk 0:01:41.3]} 16. Nf5 {[%clk 0:01:24.4]} 16... Qf8 {[%clk 0:01:34.4]} 17.
Bg5 {[%clk 0:01:24.9]} 17... Nd7 {[%clk 0:01:33.1]} 18. c3 {[%clk 0:01:21.6]}
18... Nc6 {[%clk 0:01:30.8]} 19. Rc1 {[%clk 0:01:21.2]} 19... f6 {[%clk
0:01:18.4]} 20. Bd2 {[%clk 0:01:21.9]} 20... Kh8 {[%clk 0:01:15.6]} 21. cxd4
{[%clk 0:01:20.1]} 21... cxd4 {[%clk 0:01:13.9]} 22. f4 {[%clk 0:01:18.6]} 22...
Nb6 {[%clk 0:01:04.6]} 23. fxe5 {[%clk 0:01:14.9]} 23... Bxe5 {[%clk 0:01:00.2]}
24. a5 {[%clk 0:01:14.3]} 24... Na4 {[%clk 0:01:00.5]} 25. Ra1 {[%clk
0:00:58.1]} 25... Nc5 {[%clk 0:00:51.4]} 26. Nxc5 {[%clk 0:00:54.1]} 26... Qxc5
{[%clk 0:00:53.3]} 27. Rc1 {[%clk 0:00:51.4]} 27... Qb5 {[%clk 0:00:51.9]} 28.
Bf4 {[%clk 0:00:27.7]} 28... Bxf5 {[%clk 0:00:50.2]} 29. exf5 {[%clk 0:00:29.6]}
29... Bxf4 {[%clk 0:00:37.7]} 30. Rxf4 {[%clk 0:00:31.5]} 30... Re3 {[%clk
0:00:39.4]} 31. Bxc6 {[%clk 0:00:24.1]} 31... bxc6 {[%clk 0:00:41.3]} 32. Rxd4
{[%clk 0:00:25]} 32... Qxf5 {[%clk 0:00:37.4]} 33. Qf1 {[%clk 0:00:12.2]} 33...
Qxa5 {[%clk 0:00:35.3]} 34. Qf2 {[%clk 0:00:06.8]} 34... Qe5 {[%clk 0:00:34.7]}
35. Rdc4 {[%clk 0:00:06.6]} 35... Rxd3 {[%clk 0:00:34]} 36. Rxc6 {[%clk
0:00:06.7]} 36... Rad8 {[%clk 0:00:34.5]} 37. Rc8 {[%clk 0:00:07.3]} 37... h5
{[%clk 0:00:34.5]} 38. Rxd8+ {[%clk 0:00:08.7]} 38... Rxd8 {[%clk 0:00:36.4]}
39. Re1 {[%clk 0:00:10.5]} 39... Qd4 {[%clk 0:00:33.3]} 40. Qxd4 {[%clk
0:00:11.4]} 40... Rxd4 {[%clk 0:00:35.2]} 41. Re8+ {[%clk 0:00:13.2]} 41... Kh7
{[%clk 0:00:36.1]} 42. Ra8 {[%clk 0:00:15.1]} 42... Rd6 {[%clk 0:00:36.3]} 43.
Kg2 {[%clk 0:00:15.8]} 43... Rb6 {[%clk 0:00:37.5]} 44. Kf3 {[%clk 0:00:15.2]}
44... g5 {[%clk 0:00:38.8]} 45. h3 {[%clk 0:00:16.3]} 45... Kg6 {[%clk
0:00:38.7]} 46. b4 {[%clk 0:00:17.4]} 46... Kf5 {[%clk 0:00:37.6]} 47. g4+
{[%clk 0:00:18.5]} 47... Kg6 {[%clk 0:00:36.9]} 48. Rg8+ {[%clk 0:00:19.1]}
48... Kf7 {[%clk 0:00:37.3]} 49. Ra8 {[%clk 0:00:19.5]} 49... h4 {[%clk
0:00:37.9]} 50. Ra7+ {[%clk 0:00:11.2]} 50... Kg6 {[%clk 0:00:36.2]} 51. Ra8
{[%clk 0:00:12.2]} 51... Kf7 {[%clk 0:00:30.6]} 52. Ra7+ {[%clk 0:00:13.4]}
52... Ke6 {[%clk 0:00:32.2]} 53. Kg2 {[%clk 0:00:14.1]} 53... Ke5 {[%clk
0:00:33.1]} 54. Kf3 {[%clk 0:00:15.1]} 54... Kd4 {[%clk 0:00:30]} 55. Rc7 {[%clk
0:00:06.9]} 55... Kd5 {[%clk 0:00:27.2]} 56. Rf7 {[%clk 0:00:07.5]} 56... Kc4
{[%clk 0:00:25.3]} 57. Ke4 {[%clk 0:00:06.7]} 57... Kxb4 {[%clk 0:00:26.4]} 58.
Kf5 {[%clk 0:00:08.2]} 58... a5 {[%clk 0:00:25.4]} 59. Rxf6 {[%clk 0:00:05.6]}
59... Rxf6+ {[%clk 0:00:27.3]} 60. Kxf6 {[%clk 0:00:07.5]} 60... a4 {[%clk
0:00:29.2]} 61. Kxg5 {[%clk 0:00:09.4]} 61... a3 {[%clk 0:00:31.1]} 62. Kxh4
{[%clk 0:00:09.8]} 62... a2 {[%clk 0:00:33]} 0-1

[Event "*** Titled Tuesday Blitz"]
[Site "Chess.com"]
[Date "2019.09.03"]
[Round "9"]
[White "Alexander_Moskalenko"]
[Black "alishersuleymenov"]
[Result "1-0"]
[WhiteElo "2836"]
[BlackElo "2662"]
[TimeControl "180+2"]
[EndTime "17:09:49 PDT"]
[Termination "Alexander_Moskalenko won by resignation"]

1. c4 {[%clk 0:03:01.9]} 1... Nf6 {[%clk 0:02:58.8]} 2. Nc3 {[%clk 0:03:02.8]}
2... g6 {[%clk 0:03:00.7]} 3. Nf3 {[%clk 0:03:03.6]} 3... Bg7 {[%clk 0:03:01.2]}
4. e4 {[%clk 0:03:05.5]} 4... O-O {[%clk 0:03:02]} 5. d4 {[%clk 0:03:07]} 5...
d6 {[%clk 0:03:03.4]} 6. Be2 {[%clk 0:03:08.1]} 6... e5 {[%clk 0:03:04.6]} 7.
Be3 {[%clk 0:03:09.7]} 7... exd4 {[%clk 0:03:05.5]} 8. Nxd4 {[%clk 0:03:10.7]}
8... Re8 {[%clk 0:03:07.4]} 9. f3 {[%clk 0:03:11]} 9... c6 {[%clk 0:03:08.3]}
10. Qd2 {[%clk 0:02:58.3]} 10... d5 {[%clk 0:03:09.7]} 11. exd5 {[%clk
0:02:56.8]} 11... cxd5 {[%clk 0:03:11.6]} 12. O-O {[%clk 0:02:58.3]} 12... Nc6
{[%clk 0:03:07.8]} 13. Rad1 {[%clk 0:02:56.5]} 13... dxc4 {[%clk 0:03:00.3]} 14.
Bxc4 {[%clk 0:02:58.4]} 14... Nxd4 {[%clk 0:02:46.3]} 15. Bxd4 {[%clk
0:03:00.3]} 15... Be6 {[%clk 0:02:30.4]} 16. Bxe6 {[%clk 0:02:53.1]} 16... Rxe6
{[%clk 0:02:29.2]} 17. Bf2 {[%clk 0:02:47.5]} 17... Qxd2 {[%clk 0:02:23.9]} 18.
Rxd2 {[%clk 0:02:49.4]} 18... a6 {[%clk 0:02:19.5]} 19. Rfd1 {[%clk 0:02:50.2]}
19... h6 {[%clk 0:01:56.3]} 20. Kf1 {[%clk 0:02:47.1]} 20... Rc8 {[%clk
0:01:48.1]} 21. g4 {[%clk 0:02:43.5]} 21... b5 {[%clk 0:01:41.2]} 22. h3 {[%clk
0:02:35.8]} 22... Rec6 {[%clk 0:01:30.9]} 23. Rd8+ {[%clk 0:02:31.2]} 23... Ne8
{[%clk 0:00:55.3]} 24. Be1 {[%clk 0:01:58.3]} 24... Bf6 {[%clk 0:00:08]} 25.
Rxc8 {[%clk 0:01:49.9]} 25... Rxc8 {[%clk 0:00:09.9]} 26. Nd5 {[%clk 0:01:51.8]}
26... Bd8 {[%clk 0:00:11.5]} 27. Bc3 {[%clk 0:01:47.3]} 27... f5 {[%clk
0:00:10]} 28. gxf5 {[%clk 0:01:44.9]} 28... gxf5 {[%clk 0:00:11.9]} 29. Ne3
{[%clk 0:01:46.5]} 29... f4 {[%clk 0:00:13.1]} 30. Nf5 {[%clk 0:01:45.3]} 30...
Kf7 {[%clk 0:00:03]} 31. Nxh6+ {[%clk 0:01:43.7]} 31... Ke6 {[%clk 0:00:04]} 32.
Ng4 {[%clk 0:01:45.6]} 32... Bg5 {[%clk 0:00:02.6]} 33. Re1+ {[%clk 0:01:43.3]}
33... Kd7 {[%clk 0:00:04]} 34. Ne5+ {[%clk 0:01:44.4]} 34... Kc7 {[%clk
0:00:05.1]} 35. Nf7 {[%clk 0:01:44.1]} 35... Bh4 {[%clk 0:00:05.4]} 36. Re4
{[%clk 0:01:45.1]} 36... Bg3 {[%clk 0:00:04.2]} 37. Ba5+ {[%clk 0:01:40.5]}
37... Kc6 {[%clk 0:00:02.8]} 38. Re6+ {[%clk 0:01:22.9]} 38... Kd5 {[%clk
0:00:03.8]} 39. Re5+ {[%clk 0:01:20.2]} 39... Kc6 {[%clk 0:00:04.9]} 40. Ke2
{[%clk 0:01:17.4]} 40... Kd7 {[%clk 0:00:04]} 41. Bb4 {[%clk 0:01:01.9]} 41...
Rc2+ {[%clk 0:00:05.1]} 42. Kd3 {[%clk 0:01:02.6]} 42... Rxb2 {[%clk 0:00:06.5]}
43. Re7+ {[%clk 0:01:04.2]} 43... Kc6 {[%clk 0:00:06.6]} 44. Ne5+ {[%clk
0:00:59.9]} 44... Kd5 {[%clk 0:00:04.5]} 45. Bc3 {[%clk 0:00:56.1]} 45... Rxa2
{[%clk 0:00:03.2]} 46. Rxe8 {[%clk 0:00:57.5]} 46... a5 {[%clk 0:00:02.6]} 47.
Rd8+ {[%clk 0:00:55.4]} 47... Ke6 {[%clk 0:00:03.8]} 48. Nc6 {[%clk 0:00:56.7]}
48... b4 {[%clk 0:00:05.2]} 49. Bd4 {[%clk 0:00:52.8]} 49... b3 {[%clk
0:00:06.4]} 50. Ra8 {[%clk 0:00:39.5]} 50... a4 {[%clk 0:00:07.3]} 51. Nb4
{[%clk 0:00:39.9]} 51... Rh2 {[%clk 0:00:02.7]} 52. Rxa4 {[%clk 0:00:39.2]}
52... Rxh3 {[%clk 0:00:04.1]} 53. Ra6+ {[%clk 0:00:39.7]} 53... Kf5 {[%clk
0:00:03.9]} 54. Ra5+ {[%clk 0:00:41]} 54... Ke6 {[%clk 0:00:05]} 55. Ke4 {[%clk
0:00:41.3]} 55... Rh2 {[%clk 0:00:02.7]} 56. Ra6+ {[%clk 0:00:43.2]} 56... Kd7
{[%clk 0:00:03.4]} 57. Nd3 {[%clk 0:00:42.1]} 57... Re2+ {[%clk 0:00:02.3]} 58.
Kd5 {[%clk 0:00:43.2]} 58... Kc8 {[%clk 0:00:02.4]} 59. Rc6+ {[%clk 0:00:38.7]}
59... Kd8 {[%clk 0:00:02.7]} 60. Rb6 {[%clk 0:00:38.3]} 60... Rh2 {[%clk
0:00:02.4]} 61. Rxb3 {[%clk 0:00:39]} 61... Rh1 {[%clk 0:00:03.6]} 62. Ne5
{[%clk 0:00:39.8]} 62... Rd1 {[%clk 0:00:04.3]} 63. Rd3 {[%clk 0:00:39.7]} 63...
Rb1 {[%clk 0:00:02.9]} 64. Bc5 {[%clk 0:00:37.9]} 64... Kc7 {[%clk 0:00:04.2]}
65. Ra3 {[%clk 0:00:38.1]} 65... Rd1+ {[%clk 0:00:02.8]} 66. Nd3 {[%clk
0:00:37.3]} 66... Kb8 {[%clk 0:00:02.5]} 67. Kc6 {[%clk 0:00:35.9]} 1-0

[Event "*** Titled Tuesday Blitz"]
[Site "Chess.com"]
[Date "2019.09.03"]
[Round "9"]
[White "Ginzburg_Yakov"]
[Black "vova-79"]
[Result "1-0"]
[WhiteElo "2523"]
[BlackElo "2411"]
[TimeControl "180+2"]
[EndTime "17:09:52 PDT"]
[Termination "Ginzburg_Yakov won by resignation"]

1. e4 {[%clk 0:03:01.6]} 1... e6 {[%clk 0:02:59.2]} 2. d4 {[%clk 0:03:02.1]}
2... d5 {[%clk 0:02:59.5]} 3. Nc3 {[%clk 0:03:01.2]} 3... dxe4 {[%clk
0:02:59.8]} 4. Nxe4 {[%clk 0:03:01.1]} 4... Nd7 {[%clk 0:03:01]} 5. Nf3 {[%clk
0:03:01.5]} 5... Ngf6 {[%clk 0:03:01.6]} 6. Nxf6+ {[%clk 0:03:01.4]} 6... Nxf6
{[%clk 0:03:03.5]} 7. Bg5 {[%clk 0:03:00.9]} 7... h6 {[%clk 0:03:02.5]} 8. Bh4
{[%clk 0:03:00.1]} 8... c5 {[%clk 0:03:02.4]} 9. Bb5+ {[%clk 0:02:59.2]} 9...
Bd7 {[%clk 0:03:01.5]} 10. Bxf6 {[%clk 0:02:57.8]} 10... Qa5+ {[%clk 0:02:47.4]}
11. c3 {[%clk 0:02:48.5]} 11... Qxb5 {[%clk 0:02:40.5]} 12. Bh4 {[%clk
0:02:49.1]} 12... Bd6 {[%clk 0:02:10.2]} 13. Qe2 {[%clk 0:02:44.2]} 13... O-O
{[%clk 0:02:05.1]} 14. Qxb5 {[%clk 0:02:43.6]} 14... Bxb5 {[%clk 0:02:05.1]} 15.
Bg3 {[%clk 0:02:39.8]} 15... Be7 {[%clk 0:02:01.2]} 16. Kd2 {[%clk 0:02:23.9]}
16... Bc6 {[%clk 0:01:55.1]} 17. Ke3 {[%clk 0:02:20.4]} 17... cxd4+ {[%clk
0:01:50.7]} 18. Kxd4 {[%clk 0:01:53.1]} 18... Rfd8+ {[%clk 0:01:32.3]} 19. Ke3
{[%clk 0:01:53.7]} 19... Bc5+ {[%clk 0:01:32]} 20. Ke2 {[%clk 0:01:42.2]} 20...
Bb5+ {[%clk 0:01:32.2]} 21. Ke1 {[%clk 0:01:43.3]} 21... f6 {[%clk 0:01:30.7]}
22. Rd1 {[%clk 0:01:40.1]} 22... e5 {[%clk 0:01:29.7]} 23. Nd2 {[%clk
0:01:32.7]} 23... Kf7 {[%clk 0:01:13.2]} 24. Ne4 {[%clk 0:01:28.2]} 24... Be7
{[%clk 0:01:14.1]} 25. f3 {[%clk 0:01:22.9]} 25... Rxd1+ {[%clk 0:01:10.5]} 26.
Kxd1 {[%clk 0:01:23.9]} 26... Rd8+ {[%clk 0:01:11.2]} 27. Ke1 {[%clk 0:01:19.5]}
27... b6 {[%clk 0:00:53.6]} 28. h4 {[%clk 0:01:16.6]} 28... f5 {[%clk 0:00:38]}
29. Nd2 {[%clk 0:01:16.3]} 29... Bf6 {[%clk 0:00:28.3]} 30. Bf2 {[%clk
0:01:11.1]} 30... g6 {[%clk 0:00:26.2]} 31. c4 {[%clk 0:00:58.2]} 31... Bc6
{[%clk 0:00:23.3]} 32. Ke2 {[%clk 0:00:59.2]} 32... e4 {[%clk 0:00:19.8]} 33. b3
{[%clk 0:00:50.4]} 33... Bc3 {[%clk 0:00:12.6]} 34. Nb1 {[%clk 0:00:41.4]} 34...
exf3+ {[%clk 0:00:11.8]} 35. gxf3 {[%clk 0:00:41.8]} 35... Bb4 {[%clk
0:00:11.1]} 36. a3 {[%clk 0:00:37.6]} 36... Re8+ {[%clk 0:00:11.9]} 37. Kd3
{[%clk 0:00:21.8]} 37... Bxf3 {[%clk 0:00:10]} 38. Rc1 {[%clk 0:00:10.5]} 38...
Be4+ {[%clk 0:00:06.4]} 39. Ke2 {[%clk 0:00:09.9]} 39... Bxb1+ {[%clk
0:00:06.4]} 40. Kd1 {[%clk 0:00:11.1]} 40... Bxa3 {[%clk 0:00:03.3]} 41. Rxb1
{[%clk 0:00:12.2]} 41... Bc5 {[%clk 0:00:03.4]} 42. Bxc5 {[%clk 0:00:11.3]}
42... bxc5 {[%clk 0:00:04.9]} 43. Ra1 {[%clk 0:00:13]} 43... Re7 {[%clk
0:00:05.7]} 44. Ra6 {[%clk 0:00:13.4]} 44... Rc7 {[%clk 0:00:05.9]} 45. Ke2
{[%clk 0:00:14.1]} 45... Rb7 {[%clk 0:00:05.9]} 46. h5 {[%clk 0:00:10.5]} 46...
gxh5 {[%clk 0:00:04.1]} 47. Rxh6 {[%clk 0:00:11.3]} 47... Rxb3 {[%clk
0:00:04.3]} 48. Rxh5 {[%clk 0:00:11.8]} 48... Kg6 {[%clk 0:00:05.1]} 49. Rh8
{[%clk 0:00:12.7]} 49... Rc3 {[%clk 0:00:05]} 50. Rg8+ {[%clk 0:00:13.9]} 50...
Kf6 {[%clk 0:00:05.7]} 51. Ra8 {[%clk 0:00:13.8]} 51... Rxc4 {[%clk 0:00:05.4]}
52. Rxa7 {[%clk 0:00:15.5]} 52... Kg5 {[%clk 0:00:05.9]} 53. Rg7+ {[%clk
0:00:14.6]} 53... Kf4 {[%clk 0:00:06.4]} 54. Rh7 {[%clk 0:00:16.2]} 54... Rc2+
{[%clk 0:00:06]} 55. Kd1 {[%clk 0:00:15.7]} 55... Rc4 {[%clk 0:00:04.7]} 56.
Rh4+ {[%clk 0:00:16.1]} 56... Kg3 {[%clk 0:00:04.1]} 57. Rxc4 {[%clk 0:00:16.8]}
57... f4 {[%clk 0:00:06]} 58. Ke2 {[%clk 0:00:18.1]} 1-0

[Event "*** Titled Tuesday Blitz"]
[Site "Chess.com"]
[Date "2019.09.03"]
[Round "9"]
[White "HanSchut"]
[Black "NemtsevIgor"]
[Result "1/2-1/2"]
[WhiteElo "2209"]
[BlackElo "2304"]
[TimeControl "180+2"]
[EndTime "17:09:53 PDT"]
[Termination "Game drawn by repetition"]

1. e4 {[%clk 0:03:01.9]} 1... c6 {[%clk 0:03:00.4]} 2. d4 {[%clk 0:03:01.8]}
2... d5 {[%clk 0:03:01.6]} 3. exd5 {[%clk 0:03:02.5]} 3... cxd5 {[%clk
0:03:02.8]} 4. c4 {[%clk 0:03:04.2]} 4... Nf6 {[%clk 0:03:03.6]} 5. Nc3 {[%clk
0:03:05.8]} 5... e6 {[%clk 0:03:04.8]} 6. Nf3 {[%clk 0:03:06.8]} 6... Be7 {[%clk
0:03:05.7]} 7. cxd5 {[%clk 0:03:07.5]} 7... Nxd5 {[%clk 0:03:06.4]} 8. Bd3
{[%clk 0:03:08.3]} 8... Nc6 {[%clk 0:03:07.6]} 9. O-O {[%clk 0:03:07.3]} 9...
O-O {[%clk 0:03:08.6]} 10. Qc2 {[%clk 0:03:08]} 10... g6 {[%clk 0:03:01.7]} 11.
a3 {[%clk 0:03:07]} 11... Nxc3 {[%clk 0:02:57.7]} 12. bxc3 {[%clk 0:03:05.7]}
12... b6 {[%clk 0:02:58.6]} 13. Be4 {[%clk 0:02:42.3]} 13... Bb7 {[%clk
0:02:58.7]} 14. Ne5 {[%clk 0:02:39.5]} 14... Rc8 {[%clk 0:02:56]} 15. Qe2 {[%clk
0:02:27.1]} 15... Nxe5 {[%clk 0:02:34]} 16. Bxb7 {[%clk 0:02:26.1]} 16... Rc7
{[%clk 0:02:34.9]} 17. Qxe5 {[%clk 0:02:20.2]} 17... Rxb7 {[%clk 0:02:35.5]} 18.
Bh6 {[%clk 0:02:21.5]} 18... Bf6 {[%clk 0:02:22.6]} 19. Qe4 {[%clk 0:02:22.1]}
19... Rc7 {[%clk 0:02:20.6]} 20. Bxf8 {[%clk 0:02:22.8]} 20... Qxf8 {[%clk
0:02:17.9]} 21. Rfc1 {[%clk 0:02:20.5]} 21... Qc8 {[%clk 0:02:17.4]} 22. Qd3
{[%clk 0:02:13]} 22... Rc4 {[%clk 0:02:16.3]} 23. a4 {[%clk 0:02:10.6]} 23...
Kg7 {[%clk 0:02:14.3]} 24. a5 {[%clk 0:02:11.2]} 24... b5 {[%clk 0:02:15.6]} 25.
Qd2 {[%clk 0:01:38.8]} 25... a6 {[%clk 0:01:58.1]} 26. f4 {[%clk 0:01:34.7]}
26... Qc6 {[%clk 0:01:56.3]} 27. Kf1 {[%clk 0:01:28]} 27... Qd5 {[%clk
0:01:49.9]} 28. Rab1 {[%clk 0:01:21.1]} 28... Bd8 {[%clk 0:01:45.2]} 29. Ra1
{[%clk 0:01:17]} 29... b4 {[%clk 0:01:41.1]} 30. cxb4 {[%clk 0:01:09]} 30...
Rxd4 {[%clk 0:01:42.1]} 31. Qb2 {[%clk 0:01:09.7]} 31... Bf6 {[%clk 0:01:42.5]}
32. Qf2 {[%clk 0:01:04.9]} 32... Rd2 {[%clk 0:01:36.3]} 33. Qf3 {[%clk
0:00:52.9]} 33... Qxf3+ {[%clk 0:01:16.5]} 34. gxf3 {[%clk 0:00:54.8]} 34...
Bxa1 {[%clk 0:01:17.5]} 35. Rxa1 {[%clk 0:00:51.7]} 35... Rb2 {[%clk 0:01:18.4]}
36. Ra4 {[%clk 0:00:47.1]} 36... Kf6 {[%clk 0:01:16.7]} 37. Ke1 {[%clk
0:00:47.9]} 37... Ke7 {[%clk 0:01:10.7]} 38. Kd1 {[%clk 0:00:49]} 38... Kd7
{[%clk 0:01:11.1]} 39. Kc1 {[%clk 0:00:50.3]} 39... Rb3 {[%clk 0:00:58]} 40. Kc2
{[%clk 0:00:50.5]} 40... Rxf3 {[%clk 0:00:58.9]} 41. b5 {[%clk 0:00:51.7]} 41...
Kc7 {[%clk 0:00:58.7]} 42. b6+ {[%clk 0:00:49.3]} 42... Kb7 {[%clk 0:00:59.4]}
43. Rc4 {[%clk 0:00:50.8]} 43... Ra3 {[%clk 0:00:58]} 44. Rc7+ {[%clk
0:00:50.7]} 44... Kb8 {[%clk 0:00:59.2]} 45. Rxf7 {[%clk 0:00:45.8]} 45... Rxa5
{[%clk 0:00:58.7]} 46. Rxh7 {[%clk 0:00:46.7]} 46... Rh5 {[%clk 0:00:52.5]} 47.
Re7 {[%clk 0:00:34.5]} 47... Rxh2+ {[%clk 0:00:52.9]} 48. Kc3 {[%clk 0:00:35.8]}
48... Re2 {[%clk 0:00:48]} 49. Kc4 {[%clk 0:00:32.7]} 49... Re4+ {[%clk
0:00:40.8]} 50. Kc5 {[%clk 0:00:33.7]} 50... Rxf4 {[%clk 0:00:41.8]} 51. Kc6
{[%clk 0:00:34.8]} 51... Rc4+ {[%clk 0:00:42.4]} 52. Kd6 {[%clk 0:00:35.2]}
52... a5 {[%clk 0:00:34.7]} 53. Rxe6 {[%clk 0:00:34.2]} 53... Kb7 {[%clk
0:00:35]} 54. Kd5 {[%clk 0:00:33.5]} 54... Rg4 {[%clk 0:00:35.1]} 55. Kc5 {[%clk
0:00:33.6]} 55... a4 {[%clk 0:00:35.3]} 56. Re7+ {[%clk 0:00:33.7]} 56... Kb8
{[%clk 0:00:35.6]} 57. Kc6 {[%clk 0:00:31.7]} 57... Rc4+ {[%clk 0:00:36.6]} 58.
Kb5 {[%clk 0:00:32.8]} 58... Rf4 {[%clk 0:00:30.6]} 59. Ka6 {[%clk 0:00:31.7]}
59... Rf8 {[%clk 0:00:28.8]} 60. Rb7+ {[%clk 0:00:26.6]} 60... Ka8 {[%clk
0:00:28.6]} 61. Ra7+ {[%clk 0:00:25.2]} 61... Kb8 {[%clk 0:00:29.8]} 62. Rg7
{[%clk 0:00:22.8]} 62... a3 {[%clk 0:00:27.2]} 63. Rxg6 {[%clk 0:00:19]} 63...
a2 {[%clk 0:00:28.2]} 64. Rg1 {[%clk 0:00:20.5]} 64... Ka8 {[%clk 0:00:25.7]}
65. Ra1 {[%clk 0:00:19.2]} 65... Rf2 {[%clk 0:00:26.5]} 66. Re1 {[%clk
0:00:12.8]} 66... Rf8 {[%clk 0:00:18.2]} 67. Ra1 {[%clk 0:00:13.5]} 67... Rf2
{[%clk 0:00:18.6]} 68. Re1 {[%clk 0:00:15]} 68... Rf8 {[%clk 0:00:18.9]} 69. Ra1
{[%clk 0:00:15.7]} 1/2-1/2

[Event "*** Titled Tuesday Blitz"]
[Site "Chess.com"]
[Date "2019.09.03"]
[Round "9"]
[White "kuli4ik"]
[Black "daro94"]
[Result "0-1"]
[WhiteElo "2808"]
[BlackElo "2899"]
[TimeControl "180+2"]
[EndTime "17:09:58 PDT"]
[Termination "daro94 won by resignation"]

1. d4 {[%clk 0:03:01.9]} 1... Nf6 {[%clk 0:03:01]} 2. Bg5 {[%clk 0:03:02.8]}
2... d5 {[%clk 0:03:00.5]} 3. Nf3 {[%clk 0:03:02.3]} 3... Nbd7 {[%clk 0:02:58]}
4. e3 {[%clk 0:03:00.8]} 4... g6 {[%clk 0:02:58.5]} 5. c4 {[%clk 0:03:00.2]}
5... Bg7 {[%clk 0:02:59.9]} 6. Nc3 {[%clk 0:03:00.7]} 6... dxc4 {[%clk
0:02:46.3]} 7. Bxc4 {[%clk 0:03:02.6]} 7... O-O {[%clk 0:02:47.2]} 8. O-O {[%clk
0:03:02.7]} 8... c5 {[%clk 0:02:44.4]} 9. dxc5 {[%clk 0:02:56.7]} 9... Nxc5
{[%clk 0:02:43.2]} 10. Qe2 {[%clk 0:02:50.9]} 10... Be6 {[%clk 0:02:37.2]} 11.
Rfd1 {[%clk 0:02:50.7]} 11... Qa5 {[%clk 0:02:34.4]} 12. a3 {[%clk 0:02:46.2]}
12... Bxc4 {[%clk 0:01:39]} 13. Qxc4 {[%clk 0:02:44.9]} 13... Ne6 {[%clk
0:01:40.9]} 14. Bh4 {[%clk 0:02:33.9]} 14... Rac8 {[%clk 0:01:41.5]} 15. Qa2
{[%clk 0:02:23.9]} 15... Rfd8 {[%clk 0:01:37.7]} 16. h3 {[%clk 0:02:21]} 16...
a6 {[%clk 0:01:35.7]} 17. Bg3 {[%clk 0:01:54.9]} 17... Qb6 {[%clk 0:01:25.4]}
18. Be5 {[%clk 0:01:51.6]} 18... Nc5 {[%clk 0:01:17.5]} 19. b4 {[%clk
0:01:23.8]} 19... Nce4 {[%clk 0:00:52.5]} 20. Nxe4 {[%clk 0:01:19.6]} 20... Nxe4
{[%clk 0:00:54.4]} 21. Bxg7 {[%clk 0:01:14.1]} 21... Kxg7 {[%clk 0:00:55.3]} 22.
Qb2+ {[%clk 0:01:12.5]} 22... Qf6 {[%clk 0:00:53.5]} 23. Qxf6+ {[%clk
0:01:12.4]} 23... Kxf6 {[%clk 0:00:55]} 24. Rxd8 {[%clk 0:01:10.7]} 24... Rxd8
{[%clk 0:00:55.9]} 25. Rc1 {[%clk 0:01:05.7]} 25... Rd3 {[%clk 0:00:54.3]} 26.
a4 {[%clk 0:01:01.7]} 26... Rb3 {[%clk 0:00:50.8]} 27. b5 {[%clk 0:01:02.8]}
27... axb5 {[%clk 0:00:48.8]} 28. Nd4 {[%clk 0:01:03.8]} 28... Rb2 {[%clk
0:00:50.1]} 29. f3 {[%clk 0:01:00.2]} 29... Nd6 {[%clk 0:00:47.3]} 30. Nxb5
{[%clk 0:00:56.3]} 30... Nxb5 {[%clk 0:00:48]} 31. axb5 {[%clk 0:00:58.2]} 31...
Rxb5 {[%clk 0:00:49.5]} 32. Rc7 {[%clk 0:00:58.8]} 32... Rb2 {[%clk 0:00:50]}
33. Kh2 {[%clk 0:00:57.8]} 33... g5 {[%clk 0:00:50.5]} 34. Kg3 {[%clk
0:00:56.5]} 34... h5 {[%clk 0:00:51.2]} 35. h4 {[%clk 0:00:55.3]} 35... gxh4+
{[%clk 0:00:32.8]} 36. Kxh4 {[%clk 0:00:56]} 36... Rb5 {[%clk 0:00:34.4]} 37.
Kg3 {[%clk 0:00:53.9]} 37... e6 {[%clk 0:00:34]} 38. e4 {[%clk 0:00:50.7]} 38...
Rb2 {[%clk 0:00:31.1]} 39. Kh3 {[%clk 0:00:50.9]} 39... b5 {[%clk 0:00:29.1]}
40. Rb7 {[%clk 0:00:51]} 40... b4 {[%clk 0:00:29.6]} 41. Kh4 {[%clk 0:00:45.2]}
41... Kg6 {[%clk 0:00:28.8]} 42. Kg3 {[%clk 0:00:19.9]} 42... e5 {[%clk
0:00:23.6]} 43. Rb6+ {[%clk 0:00:20.7]} 43... f6 {[%clk 0:00:25.1]} 44. f4
{[%clk 0:00:18.4]} 44... Rb3+ {[%clk 0:00:16.1]} 45. Kf2 {[%clk 0:00:18.9]}
45... exf4 {[%clk 0:00:17.6]} 46. e5 {[%clk 0:00:19.8]} 46... Kf5 {[%clk
0:00:16.7]} 47. exf6 {[%clk 0:00:20.9]} 47... Kg6 {[%clk 0:00:16.5]} 48. Rb5
{[%clk 0:00:20.8]} 48... Kxf6 {[%clk 0:00:10.7]} 49. Rxh5 {[%clk 0:00:21]} 49...
Rb1 {[%clk 0:00:11.7]} 50. Rb5 {[%clk 0:00:20.9]} 50... b3 {[%clk 0:00:13.1]}
51. Rb8 {[%clk 0:00:20.8]} 51... Ke5 {[%clk 0:00:09]} 52. Rb4 {[%clk 0:00:20.5]}
52... Kf5 {[%clk 0:00:06.2]} 53. Rb8 {[%clk 0:00:20.6]} 53... Ke4 {[%clk
0:00:06.8]} 54. Rb4+ {[%clk 0:00:19.9]} 54... Ke5 {[%clk 0:00:08.3]} 55. Rb5+
{[%clk 0:00:20.9]} 55... Kd4 {[%clk 0:00:07.8]} 56. Rb4+ {[%clk 0:00:21.9]}
56... Kc3 {[%clk 0:00:04.8]} 57. Rb8 {[%clk 0:00:21.9]} 57... b2 {[%clk
0:00:05.4]} 58. Rc8+ {[%clk 0:00:23]} 58... Kd4 {[%clk 0:00:06.4]} 59. Rd8+
{[%clk 0:00:22.9]} 59... Ke5 {[%clk 0:00:07.8]} 60. Re8+ {[%clk 0:00:24]} 60...
Kf5 {[%clk 0:00:08.9]} 61. Rf8+ {[%clk 0:00:25]} 61... Ke6 {[%clk 0:00:09.2]}
62. Re8+ {[%clk 0:00:25.9]} 62... Kd7 {[%clk 0:00:09.9]} 63. Rb8 {[%clk
0:00:26.7]} 63... Kc7 {[%clk 0:00:11.5]} 64. Rb3 {[%clk 0:00:27.1]} 64... Kc6
{[%clk 0:00:13]} 65. Rb8 {[%clk 0:00:26.8]} 65... Kc5 {[%clk 0:00:14.6]} 66.
Rc8+ {[%clk 0:00:27.6]} 66... Kd6 {[%clk 0:00:16.2]} 67. Rb8 {[%clk 0:00:28]}
67... Kc7 {[%clk 0:00:17.2]} 68. Rb3 {[%clk 0:00:28.1]} 68... Kc6 {[%clk
0:00:17.7]} 69. Rb8 {[%clk 0:00:28.8]} 69... f3 {[%clk 0:00:17.9]} 70. gxf3
{[%clk 0:00:27.5]} 70... Rh1 {[%clk 0:00:18.5]} 71. Kg2 {[%clk 0:00:22.2]} 71...
b1=Q {[%clk 0:00:18.8]} 0-1